fUST/lending_fUST_20250310
["ID","MTS","AMOUNT","RATE_DAILY","PERIOD"]
[355804732,1741596562166,-180.315701,0.0003589,2]
[355804733,1741596562189,-150.0,0.00036739,2]
[355804734,1741596562209,-250.0,0.00037564,2]
[355804735,1741596562231,-632.42422188,0.00037795,2]
[355804764,1741596632514,-561.6362755,0.00037795,2]
[355804770,1741596632569,-354.89411412,0.00037795,2]
[355804772,1741596632579,-308.21154612,0.000378,107]
[355804774,1741596632588,-1120.6990782,0.000379,8]
[355804776,1741596632598,-160.0,0.00040768,2]
[355804778,1741596632608,-416.66666667,0.00040768,2]
[355804780,1741596632618,-180.315701,0.00041211,2]
[355804782,1741596632627,-150.0,0.00042465,120]
[355804784,1741596632636,-1200.0,0.00042627,2]
[355804786,1741596632646,-1710.35489345,0.0004263,28]
[355804788,1741596632655,-500.0,0.0004264,2]
[355804790,1741596632665,-277.64038222,0.0004264,31]
[355804792,1741596632674,-500.0,0.0004264,2]
[355804794,1741596632683,-500.0,0.0004264,2]
[355804796,1741596632693,-500.0,0.0004264,2]
[355804798,1741596632703,-500.0,0.0004264,2]
[355804800,1741596632712,-500.0,0.0004264,2]
[355804802,1741596632721,-300.0,0.0004264,2]
[355804804,1741596632730,-500.0,0.0004264,2]
[355804806,1741596632740,-15555.67399697,0.00042641,2]
[355804808,1741596632749,-24900.0,0.00042653,2]
[355804810,1741596632759,-503.94601813,0.000427,10]
[355804815,1741596632774,-468.84791808,0.000427,10]
[355804818,1741596632784,-500.0,0.000427,7]
[355804821,1741596632793,-500.0,0.0004273,42]
[355804824,1741596632802,-300.0,0.0004315,120]
[355804827,1741596632811,-450.0,0.00043835,120]
[355804830,1741596632821,-180.315701,0.00046532,2]
[355804833,1741596632830,-1000.0,0.00048179,7]
[355804836,1741596632840,-150.0,0.00048939,2]
[355804839,1741596632849,-150.0,0.00048939,2]
[355804842,1741596632859,-2000.0,0.00049315,10]
[355804844,1741596632868,-500.0,0.00049382,10]
[355804846,1741596632878,-500.0,0.00049382,10]
[355804848,1741596632887,-500.0,0.00049382,2]
[355804850,1741596632897,-500.0,0.00049382,10]
[355804852,1741596632906,-500.0,0.00049382,10]
[355804854,1741596632916,-500.0,0.00049382,2]
[355804856,1741596632926,-500.0,0.00049382,10]
[355804858,1741596632936,-153.61,0.000494,45]
[355804859,1741596632946,-153.61,0.000494,45]
[355804860,1741596632955,-153.61,0.000494,45]
[355804861,1741596632965,-153.61,0.000494,45]
[355804863,1741596632976,-1364.16897718,0.0004959,4]
[355804865,1741596632986,-61445.449942,0.000496,8]
[355804867,1741596632995,-208.52405605,0.00049671,120]
[355804869,1741596633005,-208.52405605,0.00049918,120]
[355804871,1741596633018,-3006.16264774,0.00049919,120]
[355804873,1741596633028,-13649.88232714,0.0005,2]
[355804875,1741596633038,-208.52405605,0.00050164,120]
[355804877,1741596633048,-208.52405605,0.00050411,120]
[355804879,1741596633060,-1364.16897718,0.0005059,4]
[355804881,1741596633070,-40000.0,0.000506,8]
[355804883,1741596633081,-208.52405605,0.0005063,120]
[355804885,1741596633091,-150.0,0.00050718,120]
[355804887,1741596633102,-3180.09,0.00050718,120]
[355804889,1741596633113,-2437.4955447,0.00050752,30]
[355804891,1741596633124,-500.0,0.00050781,6]
[355804893,1741596633134,-191.29438147,0.00050819,2]
[355804895,1741596633145,-1730.58357222,0.00050819,2]
[355804897,1741596633155,-208.52405605,0.00050877,120]
[355804899,1741596633164,-2437.4955447,0.00050887,30]
[355804901,1741596633175,-168.95428616,0.00050888,2]
[355804903,1741596633185,-387.19,0.000509,2]
[355804905,1741596633196,-25000.0,0.00050919,80]
[355804907,1741596633207,-25000.0,0.00050919,85]
[355804908,1741596633216,-18867.05808383,0.00050919,90]
[355804909,1741596633252,-450.03874032,0.0004264,2]
[355804910,1741596633262,-500.0,0.0004264,2]
[355804911,1741596633273,-500.0,0.0004264,2]
[355804912,1741596633284,-191.72886239,0.00050919,90]
[355804916,1741596638495,-500.0,0.0004264,2]
[355804918,1741596638505,-500.0,0.0004264,2]
[355804919,1741596638515,-949.33,0.00050909,10]
[355804920,1741596638525,-5941.21305378,0.00050919,90]
[355804921,1741596638535,-24000.0,0.00050919,29]
[355804922,1741596638545,-992.045144,0.00050919,29]
[355804923,1741596638555,-7483.26057105,0.00050919,2]
[355804924,1741596638565,-107500.0,0.00050919,31]
[355804926,1741596638576,-151.0,0.00050921,120]
[355804929,1741596638586,-151.0,0.00050921,120]
[355804933,1741596638596,-151.0,0.00050921,120]
[355804935,1741596638606,-303.61058853,0.0005095,10]
[355804937,1741596638616,-500.0,0.00050973,10]
[355804939,1741596638626,-500.0,0.00050973,10]
[355804941,1741596638636,-502.28483876,0.00050973,5]
[355804942,1741596638646,-504.13604379,0.00050973,10]
[355804944,1741596638656,-151.0,0.00051,36]
[355804945,1741596638666,-208.52405605,0.00051123,120]
[355804946,1741596638676,-208.52405605,0.0005137,120]
[355804947,1741596638686,-300.0,0.00051403,120]
[355804948,1741596638695,-208.52405605,0.00051589,120]
[355804949,1741596638705,-1364.16897718,0.0005159,4]
[355804950,1741596638715,-40000.0,0.000516,8]
[355804951,1741596638725,-153.61,0.000517,51]
[355804952,1741596638735,-153.61,0.000517,51]
[355804953,1741596638745,-153.61,0.000517,51]
[355804954,1741596638755,-153.61,0.000517,51]
[355804955,1741596638765,-153.61,0.000517,51]
[355804956,1741596638775,-153.61,0.000517,51]
[355804957,1741596638785,-153.61,0.000517,51]
[355804958,1741596638795,-153.61,0.000517,51]
[355804959,1741596638805,-208.52405605,0.00051836,120]
[355804960,1741596638815,-180.315701,0.00051853,2]
[355804961,1741596638825,-338.0,0.00052,120]
[355804962,1741596638835,-339.0,0.00052,120]
[355804963,1741596638845,-500.0,0.00052054,120]
[355804964,1741596638855,-208.52405605,0.00052082,120]
[355804965,1741596638865,-450.0,0.00052087,120]
[355804966,1741596638876,-151.0,0.000521,45]
[355804967,1741596638886,-308.21154609,0.00052298,120]
[355804968,1741596638898,-151.0,0.000523,44]
[355804969,1741596638909,-500.0,0.00052328,120]
[355804970,1741596638919,-208.52405605,0.00052329,120]
[355804971,1741596638929,-1364.16897718,0.0005259,4]
[355804972,1741596638939,-40000.0,0.000526,8]
[355804973,1741596638949,-500.0,0.00052602,120]
[355804974,1741596638959,-600.0,0.00052772,120]
[355804975,1741596638970,-600.0,0.000528,2]
[355804976,1741596638980,-500.0,0.00052876,120]
[355804977,1741596638989,-178.75080625,0.00053,43]
[355804978,1741596638999,-151.0,0.000531,26]
[355804979,1741596639015,-151.0,0.000532,30]
[355804980,1741596639029,-600.0,0.0005335,2]
[355804981,1741596639041,-750.0,0.00053457,120]
[355804982,1741596639052,-1364.16897718,0.0005359,4]
[355804983,1741596639062,-151.0,0.000536,34]
[355804984,1741596639074,-50000.0,0.000536,8]
[355804985,1741596639084,-151.0,0.00053646,120]
[355804986,1741596639093,-151.0,0.00053646,120]
[355804987,1741596639103,-151.0,0.00053646,120]
[355804988,1741596639114,-151.0,0.00053646,120]
[355804989,1741596639124,-151.0,0.00053646,120]
[355804990,1741596639133,-154.902076,0.00053646,120]
[355804991,1741596639142,-746.1771785,0.00053698,4]
[355804992,1741596639285,-210.0,0.00053753,120]
[355804993,1741596639295,-600.0,0.000539,2]
[355804994,1741596639305,-338.0,0.00054,120]
[355804995,1741596639314,-339.0,0.00054,120]
[355804996,1741596639323,-153.61,0.00054,54]
[355804997,1741596639333,-153.61,0.00054,54]
[355804998,1741596639343,-153.61,0.00054,54]
[355804999,1741596639352,-153.61,0.00054,54]
[355805000,1741596639362,-153.61,0.00054,54]
[355805001,1741596639371,-153.61,0.00054,54]
[355805002,1741596639380,-153.61,0.00054,54]
[355805003,1741596639390,-153.61,0.00054,54]
[355805004,1741596639400,-65590.24910506,0.00054,30]
[355805005,1741596639410,-600.0,0.0005445,2]
[355805006,1741596639420,-1364.16897718,0.00054484,4]
[355805007,1741596639430,-55555.0,0.00054494,120]
[355805008,1741596639440,-1364.16897718,0.00054563,4]
[355805009,1741596639450,-5456.67590872,0.00054584,4]
[355805010,1741596639460,-500.0,0.00054584,15]
[355805011,1741596639471,-2728.33795436,0.0005459,4]
[355805012,1741596639482,-222000.0,0.00054594,2]
[355805013,1741596639492,-50000.0,0.000546,8]
[355805014,1741596639503,-237.97,0.00054694,120]
[355805015,1741596639514,-158.66,0.00054694,120]
[355805016,1741596639523,-179.37604099,0.00054694,62]
[355805017,1741596639534,-191.29438146,0.00054694,2]
[355805018,1741596639544,-512.66521294,0.00054738,32]
[355805019,1741596639554,-505.53305858,0.00054773,10]
[355805020,1741596639564,-502.860608,0.00054773,10]
[355805021,1741596639574,-500.0,0.00054773,5]
[355805022,1741596639584,-503.28725935,0.00054773,10]
[355805023,1741596639599,-500.0,0.00054773,10]
[355805024,1741596639608,-513.59064664,0.00054773,10]
[355805025,1741596639618,-500.0,0.00054773,10]
[355805026,1741596639627,-302.0,0.00054773,5]
[355805027,1741596639636,-251.54440811,0.00054773,10]
[355805028,1741596639645,-150.87177037,0.00054773,10]
[355805029,1741596639654,-500.0,0.00054773,10]
[355805030,1741596639664,-500.0,0.00054773,10]
[355805031,1741596639673,-500.0,0.00054773,10]
[355805032,1741596639684,-500.0,0.00054773,10]
[355805033,1741596639694,-503.86005574,0.00054773,10]
[355805034,1741596639704,-500.0,0.00054773,10]
[355805035,1741596639714,-500.0,0.00054773,10]
[355805036,1741596639727,-500.0,0.00054773,10]
[355805037,1741596639739,-504.22717255,0.00054773,10]
[355805038,1741596639749,-500.0,0.00054773,10]
[355805039,1741596639761,-499.35639846,0.00054773,10]
[355805040,1741596639772,-500.0,0.00054773,10]
[355805041,1741596639783,-501.82412565,0.00054773,10]
[355805042,1741596639795,-500.0,0.00054773,10]
[355805043,1741596639805,-500.0,0.00054773,10]
[355805044,1741596639816,-500.0,0.00054773,10]
[355805045,1741596639826,-500.98928716,0.00054773,10]
[355805046,1741596639840,-500.0,0.00054773,10]
[355805047,1741596639850,-616.96585768,0.00054773,10]
[355805048,1741596639860,-258.35886679,0.00054773,7]
[355805049,1741596639869,-502.97385004,0.00054773,10]
[355805050,1741596639879,-303.67528419,0.00054773,10]
[355805051,1741596639889,-523.65180639,0.00054773,10]
[355805052,1741596639900,-500.0,0.00054773,10]
[355805053,1741596639910,-9549.18284026,0.00054784,4]
[355805054,1741596639921,-496.5,0.00054784,120]
[355805055,1741596639931,-294.5,0.0005479,120]
[355805056,1741596639941,-250.0,0.0005479,120]
[355805057,1741596639951,-250.0,0.0005479,120]
[355805058,1741596639960,-250.0,0.0005479,120]
[355805059,1741596639969,-250.0,0.0005479,120]
[355805060,1741596639979,-500.0,0.0005479,60]
[355805061,1741596639988,-667.83592641,0.00054793,120]
[355805062,1741596639998,-151.0,0.00054794,120]
[355805063,1741596640008,-151.0,0.00054794,120]
[355805064,1741596640022,-151.0,0.00054794,120]
[355805065,1741596640032,-151.0,0.00054794,120]
[355805066,1741596640042,-295.61698,0.00054794,10]
[355805067,1741596640052,-153.567,0.00054794,120]
[355805068,1741596640063,-153.567,0.00054794,120]
[355805069,1741596640074,-153.567,0.00054794,120]
[355805070,1741596640083,-153.567,0.00054794,120]
[355805071,1741596640097,-153.567,0.00054794,120]
[355805073,1741596640107,-153.567,0.00054794,120]
[355805074,1741596640118,-151.0,0.00054794,120]
[355805076,1741596640127,-151.0,0.00054794,120]
[355805077,1741596640139,-151.0,0.00054794,120]
[355805078,1741596640150,-511.38719428,0.00054794,120]
[355805079,1741596640160,-500.0,0.00054794,120]
[355805080,1741596640170,-519.79742808,0.00054794,2]
[355805081,1741596640179,-500.0,0.00054794,120]
[355805082,1741596640190,-500.0,0.00054794,120]
[355805083,1741596640200,-516.90094779,0.00054794,120]
[355805084,1741596640211,-540.2676868,0.00054794,120]
[355805085,1741596640221,-500.0,0.00054794,2]
[355805086,1741596640231,-501.4787037,0.00054794,2]
[355805087,1741596640241,-177.51122497,0.00054794,120]
[355805088,1741596640250,-500.0,0.00054794,120]
[355805089,1741596640260,-500.0,0.00054794,120]
[355805090,1741596640270,-737.81,0.00054794,120]
[355805091,1741596640281,-500.0,0.00054794,120]
[355805092,1741596640292,-566.70574951,0.00054794,120]
[355805093,1741596640302,-530.44324522,0.00054794,120]
[355805094,1741596640312,-500.0,0.00054794,120]
[355805095,1741596640322,-514.27903455,0.00054794,120]
[355805096,1741596640332,-526.14280497,0.00054794,120]
[355805097,1741596640344,-523.79984592,0.00054794,120]
[355805098,1741596640353,-760.28,0.00054794,7]
[355805099,1741596640363,-546.36541451,0.00054794,120]
[355805100,1741596640373,-542.99435418,0.00054794,120]
[355805101,1741596640383,-514.62877582,0.00054794,120]
[355805102,1741596640392,-500.0,0.00054794,120]
[355805103,1741596640401,-500.0,0.00054794,120]
[355805104,1741596640411,-500.0,0.00054794,120]
[355805105,1741596640420,-500.0,0.00054794,120]
[355805106,1741596640430,-500.0,0.00054794,120]
[355805107,1741596640440,-526.53475689,0.00054794,120]
[355805108,1741596640450,-500.0,0.00054794,120]
[355805109,1741596640460,-500.0,0.00054794,120]
[355805110,1741596640470,-544.94321669,0.00054794,120]
[355805111,1741596640479,-500.0,0.00054794,120]
[355805112,1741596640489,-500.0,0.00054794,120]
[355805113,1741596640499,-150.39,0.00054794,112]
[355805114,1741596640509,-150.39,0.00054794,112]
[355805115,1741596640519,-203.98485185,0.00054794,112]
[355805116,1741596640528,-546.90831015,0.00054794,120]
[355805117,1741596640538,-500.0,0.00054794,120]
[355805118,1741596640548,-596.56812611,0.00054794,120]
[355805119,1741596640559,-537.78069519,0.00054794,120]
[355805120,1741596640569,-500.0,0.00054794,120]
[355805121,1741596640579,-500.0,0.00054794,120]
[355805122,1741596640588,-524.67023987,0.00054794,120]
[355805123,1741596640599,-500.0,0.00054794,120]
[355805124,1741596640609,-520.56724996,0.00054794,120]
[355805125,1741596640618,-500.0,0.00054794,120]
[355805126,1741596640628,-525.38338124,0.00054794,120]
[355805127,1741596640637,-539.56467219,0.00054794,120]
[355805128,1741596640647,-500.0,0.00054794,15]
[355805129,1741596640658,-533.46085048,0.00054794,120]
[355805130,1741596640668,-500.0,0.00054794,14]
[355805131,1741596640677,-518.37683814,0.00054794,120]
[355805132,1741596640694,-537.658624,0.00054794,120]
[355805133,1741596640703,-550.03949143,0.00054794,120]
[355805134,1741596640715,-533.57232508,0.00054794,120]
[355805135,1741596640725,-551.99791292,0.00054794,120]
[355805136,1741596640735,-500.0,0.00054794,120]
[355805137,1741596640746,-533.44934511,0.00054794,120]
[355805138,1741596640833,-500.0,0.00054794,120]
[355805139,1741596640844,-538.7378077,0.00054794,120]
[355805140,1741596640853,-500.0,0.00054794,120]
[355805141,1741596640863,-540.1836481,0.00054794,120]
[355805142,1741596640873,-500.0,0.00054794,120]
[355805143,1741596640882,-500.0,0.00054794,30]
[355805144,1741596640892,-579.24061272,0.00054794,120]
[355805145,1741596640902,-1181.32,0.00054794,120]
[355805146,1741596640911,-500.0,0.00054794,120]
[355805147,1741596640921,-500.0,0.00054794,120]
[355805148,1741596640930,-531.45154906,0.00054794,120]
[355805149,1741596640940,-405.82172471,0.00054794,120]
[355805150,1741596640950,-512.55653701,0.00054794,120]
[355805151,1741596640959,-510.03065685,0.00054794,120]
[355805152,1741596640968,-500.0,0.00054794,120]
[355805153,1741596640977,-500.0,0.00054794,120]
[355805154,1741596640986,-500.0,0.00054794,120]
[355805155,1741596640996,-500.90275268,0.00054794,120]
[355805156,1741596641006,-500.0,0.00054794,120]
[355805157,1741596641016,-500.0,0.00054794,120]
[355805158,1741596641029,-545.86335169,0.00054794,120]
[355805159,1741596641039,-509.24944421,0.00054794,120]
[355805160,1741596641048,-512.97895463,0.00054794,120]
[355805161,1741596641060,-521.7785475,0.00054794,120]
[355805162,1741596641070,-529.88469747,0.00054794,120]
[355805163,1741596641079,-522.79748732,0.00054794,120]
[355805164,1741596641090,-500.0,0.00054794,120]
[355805165,1741596641101,-500.0,0.00054794,5]
[355805166,1741596641110,-372.79504424,0.00054794,120]
[355805167,1741596641120,-500.0,0.00054794,120]
[355805168,1741596641129,-500.0,0.00054794,120]
[355805169,1741596641139,-511.90429285,0.00054794,120]
[355805170,1741596641148,-500.0,0.00054794,120]
[355805171,1741596641159,-500.0,0.00054794,120]
[355805172,1741596641168,-310.27451854,0.00054794,120]
[355805173,1741596641178,-500.0,0.00054794,120]
[355805174,1741596641187,-500.0,0.00054794,120]
[355805175,1741596641197,-500.0,0.00054794,120]
[355805176,1741596641207,-500.0,0.00054794,120]
[355805177,1741596641219,-500.0,0.00054794,120]
[355805178,1741596641229,-500.0,0.00054794,120]
[355805179,1741596641239,-526.25,0.00054794,120]
[355805180,1741596641248,-462.78004372,0.00054794,120]
[355805181,1741596641258,-1000.0,0.00054794,2]
[355805182,1741596641267,-500.0,0.00054794,120]
[355805183,1741596641276,-425.55551755,0.00054794,2]
[355805184,1741596641287,-531.83744754,0.00054794,120]
[355805185,1741596641296,-500.0,0.00054794,2]
[355805186,1741596641307,-500.0,0.00054794,120]
[355805187,1741596641317,-559.14954904,0.00054794,120]
[355805188,1741596641326,-500.0,0.00054794,14]
[355805189,1741596641338,-500.0,0.00054794,120]
[355805190,1741596641348,-601.66,0.00054794,120]
[355805191,1741596641358,-3000.0,0.00054794,2]
[355805192,1741596641369,-500.0,0.00054794,2]
[355805193,1741596641379,-500.0,0.00054794,120]
[355805194,1741596641389,-500.0,0.00054794,120]
[355805195,1741596641398,-500.0,0.00054794,120]
[355805196,1741596641408,-517.57194984,0.00054794,120]
[355805197,1741596641418,-500.0,0.00054794,120]
[355805198,1741596641428,-500.0,0.00054794,120]
[355805199,1741596641438,-500.0,0.00054794,120]
[355805200,1741596641448,-585.40496641,0.00054794,120]
[355805201,1741596641457,-500.0,0.00054794,120]
[355805202,1741596641467,-514.72797941,0.00054794,120]
[355805203,1741596641477,-525.66041988,0.00054794,120]
[355805204,1741596641486,-500.0,0.00054794,120]
[355805205,1741596641497,-500.0,0.00054794,120]
[355805206,1741596641506,-500.0,0.00054794,120]
[355805207,1741596641516,-538.03836474,0.00054794,120]
[355805208,1741596641526,-500.0,0.00054794,120]
[355805209,1741596641536,-500.0,0.00054794,120]
[355805210,1741596641545,-500.0,0.00054794,120]
[355805211,1741596641555,-527.91139631,0.00054794,120]
[355805212,1741596641564,-500.0,0.00054794,120]
[355805213,1741596641573,-500.0,0.00054794,120]
[355805214,1741596641583,-520.25712871,0.00054794,120]
[355805215,1741596641593,-500.0,0.00054794,120]
[355805216,1741596641603,-521.00417281,0.00054794,120]
[355805217,1741596641612,-500.0,0.00054794,120]
[355805218,1741596641622,-500.0,0.00054794,120]
[355805219,1741596641631,-526.7619226,0.00054794,120]
[355805220,1741596641641,-500.0,0.00054794,120]
[355805221,1741596641651,-500.0,0.00054794,120]
[355805222,1741596641660,-526.17020308,0.00054794,120]
[355805223,1741596641670,-508.03049212,0.00054794,120]
[355805224,1741596641680,-500.0,0.00054794,120]
[355805225,1741596641689,-500.0,0.00054794,120]
[355805226,1741596641699,-500.0,0.00054794,120]
[355805227,1741596641709,-500.0,0.00054794,120]
[355805228,1741596641719,-568.27,0.00054794,120]
[355805229,1741596641728,-500.0,0.00054794,120]
[355805230,1741596641738,-507.52029151,0.00054794,120]
[355805231,1741596641747,-263.465931,0.00054794,120]
[355805232,1741596641757,-532.72693015,0.00054794,120]
[355805233,1741596641767,-500.0,0.00054794,120]
[355805234,1741596641776,-500.0,0.00054794,120]
[355805235,1741596641786,-864.32633631,0.00054794,90]
[355805236,1741596641796,-500.0,0.00054794,120]
[355805237,1741596641805,-500.0,0.00054794,120]
[355805238,1741596641815,-500.0,0.00054794,120]
[355805239,1741596641825,-500.0,0.00054794,120]
[355805240,1741596641835,-500.0,0.00054794,120]
[355805241,1741596641845,-500.0,0.00054794,120]
[355805242,1741596641854,-500.0,0.00054794,120]
[355805243,1741596641865,-500.0,0.00054794,120]
[355805244,1741596641874,-500.0,0.00054794,120]
[355805245,1741596641884,-1000.0,0.00054794,5]
[355805246,1741596641894,-500.0,0.00054794,120]
[355805247,1741596641904,-500.0,0.00054794,120]
[355805248,1741596641913,-500.0,0.00054794,120]
[355805249,1741596641923,-500.0,0.00054794,120]
[355805250,1741596641934,-500.0,0.00054794,120]
[355805251,1741596641943,-176.34861406,0.00054794,2]
[355805252,1741596641953,-500.0,0.00054794,120]
[355805253,1741596641963,-500.0,0.00054794,120]
[355805254,1741596641973,-500.0,0.00054794,120]
[355805255,1741596641983,-500.0,0.00054794,120]
[355805256,1741596641992,-815.44,0.00054794,120]
[355805257,1741596642003,-500.0,0.00054794,120]
[355805258,1741596642017,-865.23,0.00054794,120]
[355805259,1741596642029,-607.55,0.00054794,120]
[355805260,1741596642039,-500.0,0.00054794,2]
[355805261,1741596642050,-500.0,0.00054794,2]
[355805262,1741596642065,-500.0,0.00054794,2]
[355805263,1741596642075,-500.0,0.00054794,2]
[355805264,1741596642085,-500.0,0.00054794,2]
[355805265,1741596642096,-500.0,0.00054794,2]
[355805266,1741596642107,-768.77293019,0.00054794,2]
[355805267,1741596642118,-500.0,0.00054794,120]
[355805268,1741596642128,-443.80254934,0.00054794,120]
[355805269,1741596642138,-500.0,0.00054794,120]
[355805270,1741596642147,-626.85966826,0.00054794,120]
[355805271,1741596642240,-500.0,0.00054794,120]
[355805272,1741596642251,-500.0,0.00054794,120]
[355805273,1741596642261,-500.0,0.00054794,120]
[355805274,1741596642271,-196.43924432,0.00054794,120]
[355805275,1741596642281,-500.0,0.00054794,120]
[355805276,1741596642292,-511.91,0.00054794,120]
[355805277,1741596642301,-500.0,0.00054794,120]
[355805278,1741596642311,-500.0,0.00054794,7]
[355805279,1741596642320,-500.0,0.00054794,120]
[355805280,1741596642331,-500.0,0.00054794,120]
[355805281,1741596642341,-525.35442099,0.00054794,120]
[355805282,1741596642351,-500.0,0.00054794,120]
[355805283,1741596642360,-513.49778927,0.00054794,120]
[355805284,1741596642370,-500.0,0.00054794,120]
[355805285,1741596642379,-525.15,0.00054794,120]
[355805286,1741596642389,-539.02608644,0.00054794,120]
[355805287,1741596642398,-525.15,0.00054794,120]
[355805288,1741596642409,-525.15,0.00054794,120]
[355805289,1741596642419,-525.15,0.00054794,120]
[355805290,1741596642430,-525.15,0.00054794,120]
[355805291,1741596642441,-525.15,0.00054794,120]
[355805292,1741596642451,-152.96791257,0.00054794,120]
[355805293,1741596642462,-525.15,0.00054794,120]
[355805294,1741596642472,-525.15,0.00054794,120]
[355805295,1741596642483,-525.15,0.00054794,120]
[355805296,1741596642494,-525.15,0.00054794,120]
[355805297,1741596642504,-525.15,0.00054794,120]
[355805298,1741596642514,-525.15,0.00054794,120]
[355805299,1741596642524,-516.54102326,0.00054794,120]
[355805300,1741596642534,-525.15,0.00054794,120]
[355805301,1741596642543,-525.15,0.00054794,120]
[355805302,1741596642553,-525.15,0.00054794,120]
[355805303,1741596642562,-525.15,0.00054794,120]
[355805304,1741596642571,-525.15,0.00054794,120]
[355805305,1741596642580,-525.15,0.00054794,120]
[355805306,1741596642591,-525.15,0.00054794,120]
[355805307,1741596642600,-525.15,0.00054794,120]
[355805308,1741596642609,-525.15,0.00054794,120]
[355805309,1741596642619,-525.15,0.00054794,120]
[355805310,1741596642629,-151.0,0.00054794,120]
[355805311,1741596642639,-525.15,0.00054794,120]
[355805312,1741596642648,-525.20209841,0.00054794,120]
[355805313,1741596642657,-500.0,0.00054794,120]
[355805314,1741596642667,-500.0,0.00054794,2]
[355805315,1741596642676,-541.80673851,0.00054794,120]
[355805316,1741596642686,-500.0,0.00054794,120]
[355805317,1741596642695,-500.0,0.00054794,120]
[355805318,1741596642705,-884.21,0.00054794,120]
[355805319,1741596642714,-507.22571154,0.00054794,120]
[355805320,1741596642724,-500.0,0.00054794,120]
[355805321,1741596642733,-500.0,0.00054794,120]
[355805322,1741596642743,-500.0,0.00054794,120]
[355805323,1741596642753,-500.0,0.00054794,120]
[355805324,1741596642762,-500.0,0.00054794,120]
[355805325,1741596642771,-500.0,0.00054794,120]
[355805326,1741596642781,-500.0,0.00054794,120]
[355805327,1741596642791,-500.0,0.00054794,120]
[355805328,1741596642801,-500.0,0.00054794,120]
[355805329,1741596642811,-500.0,0.00054794,120]
[355805330,1741596642820,-500.0,0.00054794,120]
[355805331,1741596642830,-500.0,0.00054794,120]
[355805332,1741596642842,-513.0738577,0.00054794,120]
[355805333,1741596642852,-500.0,0.00054794,120]
[355805334,1741596642862,-646.1,0.00054794,120]
[355805335,1741596642872,-500.0,0.00054794,120]
[355805336,1741596642881,-500.0,0.00054794,120]
[355805337,1741596642891,-500.0,0.00054794,120]
[355805338,1741596642901,-408.67521279,0.00054794,120]
[355805339,1741596642910,-1304.58,0.00054794,120]
[355805340,1741596642920,-3058.13,0.00054794,120]
[355805341,1741596642929,-500.0,0.00054794,120]
[355805342,1741596642939,-573.03282652,0.00054794,120]
[355805343,1741596642949,-543.32344499,0.00054794,120]
[355805344,1741596642958,-500.0,0.00054794,120]
[355805345,1741596642967,-500.0,0.00054794,120]
[355805346,1741596642976,-500.0,0.00054794,120]
[355805347,1741596642986,-416.66666667,0.00054794,7]
[355805348,1741596642995,-500.0,0.00054794,120]
[355805349,1741596643004,-500.0,0.00054794,120]
[355805350,1741596643014,-533.95703018,0.00054794,120]
[355805351,1741596643028,-500.0,0.00054794,120]
[355805352,1741596643037,-521.05,0.00054794,120]
[355805353,1741596643047,-500.0,0.00054794,120]
[355805354,1741596643057,-500.0,0.00054794,120]